[Event "British Championship 2024"]
[Site "Hull"]
[Date "2024.07.31"]
[Round "4.22"]
[White "Shearsby, Jude"]
[Black "Davies, Nigel R"]
[Result "1/2-1/2"]
[Annotator "RC"]
[ECO "B42"]
[WhiteElo "2092"]
[BlackElo "2325"]
[PlyCount "52"]
[EventDate "2024.07.31"]
[EventCountry "GBR"]
[SourceTitle "playchess.com"]
[Source "ChessBase"]
[SourceQuality "1"]
[TimeControl "40/5400+30:1800+30"]

1. e4 {[%emt 1:31:00]} c5 {[%emt 0:00:09]} 2. Nf3 {[%emt 0:00:00]} e6 {[%emt 0:00:08]} 3. d4 {[%emt 0:00:00]} cxd4 {[%emt 0:00:08]} 4. Nxd4 {[%emt 0:00:00]} a6 {[%emt 0:00:08]} 5. Bd3 {[%emt 0:00:00]} Bc5 {[%emt 0:00:11]} 6. Nb3 {[%emt 0:00:00]} Ba7 {[%emt 0:00:13]} 7. O-O {[%emt 0:00:00]} Nc6 {[%emt 0:00:21]} 8. Qe2 {[%emt 0:00:00]} d6 {[%emt 0:00:20]} 9. Be3 {[%emt 0:00:00]} Nf6 {[%emt 0:02:44]} 10. Nc3 {[%emt 0:00:00]} Bxe3 {[%emt 0:03:06]} 11. Qxe3 {[%emt 0:00:00]} O-O {[%emt 0:00:46]} 12. Rad1 {[%emt 0:00:00]} b5 {[%emt 0:04:46]} 13. Nd4 {[%emt 0:00:00]} Qc7 {[%emt 0:09:38]} 14. Nxc6 {[%emt 0:00:00]} Qxc6 {[%emt 0:00:09]} 15. Be2 {[%emt 0:00:00]} Bb7 {[%emt 0:03:22]} 16. Bf3 {[%emt 0:00:00]} Qc7 {[%emt 0:01:21]} 17. a3 {[%emt 0:00:00]} Rfd8 {[%emt 0:00:53]} 18. Rd2 {[%emt 0:00:00]} Rd7 {[%emt 0:26:34]} 19. Rfd1 {[%emt 0:00:00]} Rad8 {[%emt 0:03:14]} 20. e5 {[%emt 0:00:00]} dxe5 {[%emt 0:00:35]} 21. Bxb7 {[%emt 0:00:00]} Qxb7 {[%emt 0:00:11]} 22. Rxd7 {[%emt 0:00:00]} Rxd7 {[%emt 0:00:19]} 23. Qxe5 {[%emt 0:00:00]} h6 {[%emt 0:01:00]} 24. Rxd7 {[%emt 0:00:00]} Qxd7 {[%emt 0:00:08]} 25. Qe3 {[%emt 0:00:00]} Qd6 {[%emt 0:02:57]} 26. h3 {[%emt 0:12:30]} g5 {[%emt 0:06:47]} 1/2-1/2

[Event "British Championship 2024"]
[Site "Hull"]
[Date "2024.07.31"]
[Round "4.23"]
[White "Mirzoeva, Elmira"]
[Black "Saunders, Aron"]
[Result "1-0"]
[Annotator "RC"]
[ECO "D17"]
[WhiteElo "2260"]
[BlackElo "2105"]
[PlyCount "81"]
[EventDate "2024.07.31"]
[EventCountry "GBR"]
[SourceTitle "playchess.com"]
[Source "ChessBase"]
[SourceQuality "1"]
[TimeControl "40/5400+30:1800+30"]

1. d4 {[%emt 0:00:03]} d5 {[%emt 0:00:06]} 2. c4 {[%emt 0:00:11]} c6 {[%emt 0:00:05]} 3. Nf3 {[%emt 0:00:11]} Nf6 {[%emt 0:00:06]} 4. Nc3 {[%emt 0:00:15]} dxc4 {[%emt 0:00:06]} 5. a4 {[%emt 0:00:21]} Bf5 {[%emt 0:00:06]} 6. Nh4 {[%emt 0:00:17]} e6 {[%emt 0:02:31]} 7. Nxf5 {[%emt 0:00:34]} exf5 {[%emt 0:00:05]} 8. e3 {[%emt 0:00:09]} Bd6 {[%emt 0:01:03]} 9. Bxc4 {[%emt 0:00:37]} O-O {[%emt 0:01:25]} 10. Qf3 {[%emt 0:08:39]} Qd7 {[%emt 0:02:34]} 11. h3 {[%emt 0:07:46]} Na6 {[%emt 0:05:23]} 12. Bd3 {[%emt 0:02:04]} g6 {[%emt 0:01:09]} 13. g4 {[%emt 0:03:38]} Nb4 {[%emt 0:01:27]} 14. Bb1 {[%emt 0:02:05]} c5 {[%emt 0:04:08]} 15. dxc5 {[%emt 0:08:54]} Bxc5 {[%emt 0:00:23]} 16. O-O {[%emt 0:00:22]} Nc6 {[%emt 0:04:44]} 17. gxf5 {[%emt 0:06:31]} Ne5 {[%emt 0:06:00]} 18. Qg2 {[%emt 0:01:02]} Rad8 {[%emt 0:04:24]} 19. a5 {[%emt 0:10:10]} Bb4 {[%emt 0:07:59]} 20. fxg6 {[%emt 0:08:21]} fxg6 {[%emt 0:03:09]} 21. f4 {[%emt 0:06:37]} Nc6 {[%emt 0:05:08]} 22. a6 {[%emt 0:00:43]} b6 {[%emt 0:11:16]} 23. Bc2 {[%emt 0:03:54]} Ne7 {[%emt 0:02:26]} 24. Ba4 {[%emt 0:06:48]} Qe6 {[%emt 0:02:25]} 25. Nb5 {[%emt 0:06:34]} Bc5 {[%emt 0:05:23]} 26. Nxa7 {[%emt 0:10:28]} Nf5 {[%emt 0:03:11]} 27. Re1 {[%emt 0:05:00]} Nh5 {[%emt 0:04:03]} 28. b4 {[%emt 0:01:24]} Nh4 {[%emt 0:07:13]} 29. Qg4 {[%emt 0:00:42]} Qxg4+ {[%emt 0:07:33]} 30. hxg4 {[%emt 0:00:01]} Rxf4 {[%emt 0:02:24]} 31. Bb3+ {[%emt 0:00:44]} Kg7 {[%emt 0:00:38]} 32. gxh5 {[%emt 0:00:41]} Nf3+ {[%emt 0:04:36]} 33. Kf1 {[%emt 0:00:32]} Rh4 {[%emt 0:00:41]} 34. Bb2+ {[%emt 0:00:27]} Kh6 {[%emt 0:00:09]} 35. Re2 {[%emt 0:00:36]} Nd2+ {[%emt 0:01:11]} 36. Kg2 {[%emt 0:00:10]} Rg4+ {[%emt 0:02:08]} 37. Kh3 {[%emt 0:00:12]} Kxh5 {[%emt 0:00:15]} 38. bxc5 {[%emt 0:00:45]} Rf8 {[%emt 0:00:45]} 39. Rxd2 {[%emt 0:00:26]} Rf3+ {[%emt 0:00:59]} 40. Kh2 {[%emt 0:00:01]} Rgg3 {[%emt 0:00:41]} 41. Bd1 {[%emt 0:30:24]} 1-0

[Event "British Championship 2024"]
[Site "Hull"]
[Date "2024.07.31"]
[Round "4.24"]
[White "Lewis, Andrew P"]
[Black "Dicen, Elis Denele"]
[Result "1-0"]
[Annotator "RC"]
[ECO "A28"]
[WhiteElo "2272"]
[BlackElo "2073"]
[PlyCount "67"]
[EventDate "2024.07.31"]
[EventCountry "GBR"]
[SourceTitle "playchess.com"]
[Source "ChessBase"]
[SourceQuality "1"]
[TimeControl "40/5400+30:1800+30"]

1. c4 {[%emt 0:00:07]} e5 {[%emt 0:00:05]} 2. Nc3 {[%emt 0:00:14]} Nf6 {[%emt 0:00:11]} 3. Nf3 {[%emt 0:00:31]} Nc6 {[%emt 0:00:07]} 4. e4 {[%emt 0:01:20]} Bb4 {[%emt 0:00:25]} 5. d3 {[%emt 0:00:32]} d6 {[%emt 0:00:19]} 6. h3 {[%emt 0:02:38]} a5 {[%emt 0:02:01]} 7. g3 {[%emt 0:03:27]} Be6 {[%emt 0:02:35]} 8. Bg2 {[%emt 0:05:08]} Qd7 {[%emt 0:06:44]} 9. a3 {[%emt 0:08:03]} Bc5 {[%emt 0:04:44]} 10. Bg5 {[%emt 0:07:27]} Ng8 {[%emt 0:10:36]} 11. Be3 {[%emt 0:02:30]} Nge7 {[%emt 0:13:05]} 12. Nd5 {[%emt 0:03:27]} O-O {[%emt 0:09:02]} 13. g4 {[%emt 0:14:09]} Bxe3 {[%emt 0:13:00]} 14. fxe3 {[%emt 0:01:11]} Bxd5 {[%emt 0:02:01]} 15. cxd5 {[%emt 0:01:23]} Nd8 {[%emt 0:01:10]} 16. O-O {[%emt 0:03:24]} c6 {[%emt 0:02:11]} 17. Nh4 {[%emt 0:07:52]} cxd5 {[%emt 0:01:19]} 18. Nf5 {[%emt 0:03:36]} dxe4 {[%emt 0:04:48]} 19. dxe4 {[%emt 0:00:14]} Ne6 {[%emt 0:01:58]} 20. Qf3 {[%emt 0:06:39]} Ra6 {[%emt 0:03:07]} 21. h4 {[%emt 0:02:07]} f6 {[%emt 0:02:33]} 22. Bh3 {[%emt 0:01:29]} g6 {[%emt 0:03:06]} 23. Nh6+ {[%emt 0:03:41]} Kg7 {[%emt 0:00:32]} 24. g5 {[%emt 0:00:41]} fxg5 {[%emt 0:02:24]} 25. Qxf8+ {[%emt 0:00:42]} Nxf8 {[%emt 0:01:13]} 26. Bxd7 {[%emt 0:00:05]} Nxd7 {[%emt 0:04:06]} 27. hxg5 {[%emt 0:01:09]} Nf8 {[%emt 0:00:56]} 28. Rf7+ {[%emt 0:00:29]} Kh8 {[%emt 0:00:17]} 29. Rxf8+ {[%emt 0:00:21]} Kg7 {[%emt 0:00:09]} 30. Rf7+ {[%emt 0:00:21]} Kh8 {[%emt 0:00:12]} 31. Rxe7 {[%emt 0:00:13]} Ra8 {[%emt 0:00:19]} 32. Rf1 {[%emt 0:00:40]} b6 {[%emt 0:00:20]} 33. Rff7 {[%emt 0:00:19]} Rc8 {[%emt 0:00:07]} 34. Rxh7# {[%emt 0:00:10]} 1-0

[Event "British Championship 2024"]
[Site "Hull"]
[Date "2024.07.31"]
[Round "4.25"]
[White "Kalavannan, Koby"]
[Black "Rathbone-Jones, Ifan"]
[Result "0-1"]
[Annotator "RC"]
[ECO "E05"]
[WhiteElo "2265"]
[BlackElo "2014"]
[PlyCount "62"]
[EventDate "2024.07.31"]
[EventCountry "GBR"]
[SourceTitle "playchess.com"]
[Source "ChessBase"]
[SourceQuality "1"]
[TimeControl "40/5400+30:1800+30"]

1. d4 {[%emt 0:00:37]} Nf6 {[%emt 0:00:07]} 2. Nf3 {[%emt 0:00:14]} e6 {[%emt 0:00:30]} 3. c4 {[%emt 0:00:18]} d5 {[%emt 0:00:08]} 4. g3 {[%emt 0:00:15]} Be7 {[%emt 0:00:09]} 5. Bg2 {[%emt 0:00:07]} O-O {[%emt 0:00:11]} 6. O-O {[%emt 0:00:09]} dxc4 {[%emt 0:00:06]} 7. Qc2 {[%emt 0:00:19]} b6 {[%emt 0:01:14]} 8. e4 {[%emt 0:12:45]} Bb7 {[%emt 0:01:05]} 9. Nbd2 {[%emt 0:07:44]} Nbd7 {[%emt 0:01:14]} 10. e5 {[%emt 0:01:09]} Nd5 {[%emt 0:00:33]} 11. Nxc4 {[%emt 0:00:51]} c5 {[%emt 0:05:34]} 12. dxc5 {[%emt 0:01:31]} Rc8 {[%emt 0:05:39]} 13. Rd1 {[%emt 0:09:47]} Rxc5 {[%emt 0:08:47]} 14. Qd3 {[%emt 0:04:19]} Ba6 {[%emt 0:14:20]} 15. b3 {[%emt 0:00:30]} Qc8 {[%emt 0:00:39]} 16. Bg5 {[%emt 0:08:21]} Nxe5 {[%emt 0:02:53]} 17. Nfxe5 {[%emt 0:09:35]} Bxg5 {[%emt 0:00:04]} 18. f4 {[%emt 0:00:07]} Bf6 {[%emt 0:03:26]} 19. Be4 {[%emt 0:02:23]} g6 {[%emt 0:07:44]} 20. Qf3 {[%emt 0:17:59]} Bxe5 {[%emt 0:08:28]} 21. Nxe5 {[%emt 0:00:42]} Nc3 {[%emt 0:01:15]} 22. Re1 {[%emt 0:18:44]} Nxe4 {[%emt 0:01:49]} 23. Qxe4 {[%emt 0:00:01]} Bb7 {[%emt 0:00:12]} 24. Qe3 {[%emt 0:00:00]} Rc3 {[%emt 0:01:42]} 25. Qe2 {[%emt 0:01:35]} Qc5+ {[%emt 0:00:28]} 26. Qf2 {[%emt 0:00:47]} Qd5 {[%emt 0:00:08]} 27. Kf1 {[%emt 0:00:04]} f6 {[%emt 0:01:31]} 28. Ng4 {[%emt 0:00:36]} Rf3 {[%emt 0:00:14]} 29. Ne3 {[%emt 0:00:15]} Rxf2+ {[%emt 0:00:07]} 30. Kxf2 {[%emt 0:00:01]} Qf3+ {[%emt 0:00:27]} 31. Kg1 {[%emt 0:00:04]} Qh1+ {[%emt 0:00:17]} 0-1

[Event "British Championship 2024"]
[Site "Hull"]
[Date "2024.07.31"]
[Round "4.26"]
[White "Khoury, Theo"]
[Black "Merriman, John"]
[Result "0-1"]
[Annotator "RC"]
[ECO "C11"]
[WhiteElo "2057"]
[BlackElo "2251"]
[PlyCount "60"]
[EventDate "2024.07.31"]
[EventCountry "GBR"]
[SourceTitle "playchess.com"]
[Source "ChessBase"]
[SourceQuality "1"]
[TimeControl "40/5400+30:1800+30"]

1. e4 {[%emt 0:00:01]} e6 {[%emt 0:00:52]} 2. d4 {[%emt 0:00:27]} d5 {[%emt 0:00:11]} 3. Nc3 {[%emt 0:00:04]} Nf6 {[%emt 0:00:23]} 4. e5 {[%emt 0:00:03]} Nfd7 {[%emt 0:00:07]} 5. f4 {[%emt 0:00:02]} c5 {[%emt 0:00:07]} 6. Nf3 {[%emt 0:00:02]} Nc6 {[%emt 0:00:07]} 7. Be3 {[%emt 0:00:02]} Rb8 {[%emt 0:00:34]} 8. dxc5 {[%emt 0:07:49]} Bxc5 {[%emt 0:02:24]} 9. Qd2 {[%emt 0:00:34]} Qa5 {[%emt 0:11:03]} 10. Bxc5 {[%emt 0:05:35]} Nxc5 {[%emt 0:08:44]} 11. Nb5 {[%emt 0:00:39]} Qxd2+ {[%emt 0:04:42]} 12. Kxd2 {[%emt 0:00:21]} O-O {[%emt 0:07:00]} 13. Nbd4 {[%emt 0:03:15]} f6 {[%emt 0:03:35]} 14. c3 {[%emt 0:09:55]} g5 {[%emt 0:10:43]} 15. exf6 {[%emt 0:21:02]} gxf4 {[%emt 0:01:32]} 16. Re1 {[%emt 0:00:14]} Rxf6 {[%emt 0:06:24]} 17. Bd3 {[%emt 0:00:23]} Bd7 {[%emt 0:04:25]} 18. b4 {[%emt 0:06:31]} Nxd3 {[%emt 0:02:04]} 19. Kxd3 {[%emt 0:00:10]} Nxd4 {[%emt 0:10:19]} 20. Nxd4 {[%emt 0:06:18]} Kf7 {[%emt 0:00:53]} 21. Rhf1 {[%emt 0:03:14]} Rg8 {[%emt 0:01:36]} 22. Rf2 {[%emt 0:00:15]} Ke7 {[%emt 0:01:46]} 23. Nf3 {[%emt 0:02:15]} Kd6 {[%emt 0:03:15]} 24. Ne5 {[%emt 0:01:49]} Rf5 {[%emt 0:04:05]} 25. Kd4 {[%emt 0:00:27]} Bb5 {[%emt 0:02:28]} 26. g3 {[%emt 0:07:36]} Rxe5 {[%emt 0:07:51]} 27. Rxe5 {[%emt 0:01:25]} fxg3 {[%emt 0:00:03]} 28. hxg3 {[%emt 0:03:21]} Rxg3 {[%emt 0:00:39]} 29. c4 {[%emt 0:00:46]} Bxc4 {[%emt 0:01:24]} 30. Re3 {[%emt 0:00:26]} e5+ {[%emt 0:00:23]} 0-1

[Event "British Championship 2024"]
[Site "Hull"]
[Date "2024.07.31"]
[Round "4.27"]
[White "Madhavan, Sanjith"]
[Black "Toma, Katarzyna"]
[Result "1-0"]
[Annotator "RC"]
[ECO "B91"]
[WhiteElo "1998"]
[BlackElo "2220"]
[PlyCount "85"]
[EventDate "2024.07.31"]
[EventCountry "GBR"]
[SourceTitle "playchess.com"]
[Source "ChessBase"]
[SourceQuality "1"]
[TimeControl "40/5400+30:1800+30"]

1. e4 {[%emt 0:00:04]} c5 {[%emt 0:00:04]} 2. Nf3 {[%emt 0:00:07]} d6 {[%emt 0:00:31]} 3. d4 {[%emt 0:00:15]} cxd4 {[%emt 0:00:05]} 4. Nxd4 {[%emt 0:00:04]} Nf6 {[%emt 0:00:05]} 5. Nc3 {[%emt 0:00:05]} a6 {[%emt 0:00:05]} 6. g3 {[%emt 0:00:31]} e5 {[%emt 0:00:44]} 7. Nde2 {[%emt 0:00:05]} Be6 {[%emt 0:00:42]} 8. Bg2 {[%emt 0:00:07]} Be7 {[%emt 0:00:38]} 9. a4 {[%emt 0:02:31]} Nbd7 {[%emt 0:01:34]} 10. h3 {[%emt 0:01:12]} Nb6 {[%emt 0:13:13]} 11. b3 {[%emt 0:01:58]} d5 {[%emt 0:00:48]} 12. a5 {[%emt 0:02:55]} d4 {[%emt 0:00:06]} 13. axb6 {[%emt 0:03:03]} dxc3 {[%emt 0:00:31]} 14. O-O {[%emt 0:00:34]} Qc8 {[%emt 0:10:12]} 15. Kh2 {[%emt 0:02:10]} O-O {[%emt 0:02:29]} 16. Qe1 {[%emt 0:07:29]} Bb4 {[%emt 0:06:41]} 17. f4 {[%emt 0:07:39]} Qc5 {[%emt 0:01:41]} 18. fxe5 {[%emt 0:04:05]} Nd7 {[%emt 0:09:19]} 19. Nf4 {[%emt 0:02:44]} Nxb6 {[%emt 0:18:27]} 20. Nd3 {[%emt 0:04:53]} Qe7 {[%emt 0:02:01]} 21. Nxb4 {[%emt 0:01:01]} Qxb4 {[%emt 0:00:06]} 22. Ba3 {[%emt 0:00:03]} Qd4 {[%emt 0:02:32]} 23. Rd1 {[%emt 0:00:46]} Qxe5 {[%emt 0:01:00]} 24. Bd6 {[%emt 0:00:16]} Qa5 {[%emt 0:01:31]} 25. Ra1 {[%emt 0:00:58]} Qb5 {[%emt 0:04:51]} 26. Bxf8 {[%emt 0:00:40]} Rxf8 {[%emt 0:00:39]} 27. Qxc3 {[%emt 0:00:08]} Rc8 {[%emt 0:00:41]} 28. Qd2 {[%emt 0:00:56]} Nd7 {[%emt 0:00:54]} 29. Ra4 {[%emt 0:04:35]} h6 {[%emt 0:06:06]} 30. Rd4 {[%emt 0:04:55]} Rc7 {[%emt 0:01:38]} 31. Rf2 {[%emt 0:13:55]} Qe5 {[%emt 0:01:40]} 32. Rd3 {[%emt 0:01:14]} b5 {[%emt 0:05:47]} 33. Qf4 {[%emt 0:01:53]} Qc5 {[%emt 0:00:07]} 34. b4 {[%emt 0:06:08]} Qa7 {[%emt 0:01:04]} 35. Rd6 {[%emt 0:01:12]} Rc4 {[%emt 0:02:02]} 36. Rxe6 {[%emt 0:15:02]} fxe6 {[%emt 0:00:04]} 37. Qf7+ {[%emt 0:00:07]} Kh8 {[%emt 0:00:49]} 38. Qe8+ {[%emt 0:00:46]} Kh7 {[%emt 0:00:06]} 39. Rf7 {[%emt 0:00:36]} Rc7 {[%emt 0:02:30]} 40. Qxe6 {[%emt 0:01:53]} Qd4 {[%emt 0:02:49]} 41. Qf5+ {[%emt 0:30:24]} Kg8 {[%emt 0:33:15]} 42. e5 {[%emt 0:00:20]} Ra7 {[%emt 0:00:00]} 43. c3 {[%emt 0:00:00]} 1-0

[Event "British Championship 2024"]
[Site "Hull"]
[Date "2024.07.31"]
[Round "4.29"]
[White "Villiers, Thomas"]
[Black "Kalaiyalahan, Akshaya"]
[Result "1/2-1/2"]
[Annotator "RC"]
[ECO "B36"]
[WhiteElo "2229"]
[BlackElo "2140"]
[PlyCount "56"]
[EventDate "2024.07.31"]
[EventCountry "GBR"]
[SourceTitle "playchess.com"]
[Source "ChessBase"]
[SourceQuality "1"]
[TimeControl "40/5400+30:1800+30"]

1. e4 {[%emt 0:01:16]} c5 {[%emt 0:00:02]} 2. Nf3 {[%emt 0:00:08]} Nc6 {[%emt 0:00:04]} 3. d4 {[%emt 0:00:05]} cxd4 {[%emt 0:00:06]} 4. Nxd4 {[%emt 0:00:05]} g6 {[%emt 0:00:04]} 5. c4 {[%emt 0:00:22]} Nf6 {[%emt 0:00:11]} 6. Nc3 {[%emt 0:00:05]} d6 {[%emt 0:00:09]} 7. Be2 {[%emt 0:00:31]} Nxd4 {[%emt 0:00:09]} 8. Qxd4 {[%emt 0:00:07]} Bg7 {[%emt 0:00:04]} 9. f3 {[%emt 0:00:36]} O-O {[%emt 0:00:31]} 10. Qf2 {[%emt 0:00:03]} Be6 {[%emt 0:02:04]} 11. O-O {[%emt 0:02:27]} Qa5 {[%emt 0:01:26]} 12. Be3 {[%emt 0:03:49]} Rfc8 {[%emt 0:06:10]} 13. Nd5 {[%emt 0:01:26]} Nxd5 {[%emt 0:06:56]} 14. cxd5 {[%emt 0:00:44]} Bd7 {[%emt 0:00:04]} 15. Bd3 {[%emt 0:00:27]} Bb5 {[%emt 0:06:21]} 16. Rfd1 {[%emt 0:00:24]} Qa6 {[%emt 0:08:03]} 17. Bxb5 {[%emt 0:07:42]} Qxb5 {[%emt 0:00:06]} 18. Rac1 {[%emt 0:00:09]} Qxb2 {[%emt 0:06:07]} 19. Qxb2 {[%emt 0:00:54]} Bxb2 {[%emt 0:00:05]} 20. Rxc8+ {[%emt 0:00:06]} Rxc8 {[%emt 0:00:03]} 21. Bxa7 {[%emt 0:00:17]} Ra8 {[%emt 0:01:16]} 22. Rb1 {[%emt 0:00:06]} Bf6 {[%emt 0:09:18]} 23. Be3 {[%emt 0:00:09]} Rxa2 {[%emt 0:00:23]} 24. Rxb7 {[%emt 0:00:10]} Ra1+ {[%emt 0:00:44]} 25. Kf2 {[%emt 0:00:06]} Ra2+ {[%emt 0:00:14]} 26. Kf1 {[%emt 0:01:37]} Ra1+ {[%emt 0:00:24]} 27. Kf2 {[%emt 0:00:08]} Ra2+ {[%emt 0:00:05]} 28. Kf1 {[%emt 0:00:16]} Ra1+ {[%emt 0:00:06]} 1/2-1/2

[Event "British Championship 2024"]
[Site "Hull"]
[Date "2024.07.31"]
[Round "4.30"]
[White "Verma, Aditya"]
[Black "Ledger, Dave J"]
[Result "0-1"]
[Annotator "RC"]
[ECO "C72"]
[WhiteElo "2118"]
[BlackElo "2201"]
[PlyCount "58"]
[EventDate "2024.07.31"]
[EventCountry "GBR"]
[SourceTitle "playchess.com"]
[Source "ChessBase"]
[SourceQuality "1"]
[TimeControl "40/5400+30:1800+30"]

1. e4 {[%emt 0:00:02]} e5 {[%emt 0:00:12]} 2. Nf3 {[%emt 0:00:03]} Nc6 {[%emt 0:00:04]} 3. Bb5 {[%emt 0:00:04]} a6 {[%emt 0:00:13]} 4. Ba4 {[%emt 0:00:03]} d6 {[%emt 0:00:39]} 5. c3 {[%emt 0:00:54]} Bd7 {[%emt 0:00:48]} 6. O-O {[%emt 0:02:28]} g5 {[%emt 0:00:54]} 7. d4 {[%emt 0:03:53]} g4 {[%emt 0:00:27]} 8. Ne1 {[%emt 0:03:14]} h5 {[%emt 0:04:30]} 9. f4 {[%emt 0:10:28]} exd4 {[%emt 0:02:10]} 10. cxd4 {[%emt 0:06:00]} d5 {[%emt 0:08:18]} 11. e5 {[%emt 0:07:08]} Nh6 {[%emt 0:14:55]} 12. Nc3 {[%emt 0:01:50]} Be6 {[%emt 0:02:01]} 13. Bxc6+ {[%emt 0:11:59]} bxc6 {[%emt 0:00:22]} 14. Qa4 {[%emt 0:00:03]} Qd7 {[%emt 0:03:00]} 15. Be3 {[%emt 0:02:25]} Nf5 {[%emt 0:03:41]} 16. Nd1 {[%emt 0:00:18]} c5 {[%emt 0:06:40]} 17. Qxd7+ {[%emt 0:00:18]} Kxd7 {[%emt 0:00:15]} 18. Nc2 {[%emt 0:00:55]} cxd4 {[%emt 0:05:39]} 19. Nxd4 {[%emt 0:00:35]} c5 {[%emt 0:02:01]} 20. Nxf5 {[%emt 0:00:58]} Bxf5 {[%emt 0:03:19]} 21. b3 {[%emt 0:00:03]} Be7 {[%emt 0:11:20]} 22. Rc1 {[%emt 0:01:37]} Rac8 {[%emt 0:01:03]} 23. Nb2 {[%emt 0:01:42]} Rc6 {[%emt 0:00:46]} 24. Na4 {[%emt 0:02:18]} Rhc8 {[%emt 0:06:25]} 25. Rfd1 {[%emt 0:01:51]} Ke6 {[%emt 0:00:24]} 26. g3 {[%emt 0:04:00]} R8c7 {[%emt 0:02:40]} 27. Bf2 {[%emt 0:01:25]} Be4 {[%emt 0:02:18]} 28. Rc3 {[%emt 0:08:40]} c4 {[%emt 0:02:51]} 29. Rdc1 {[%emt 0:01:32]} Bb4 {[%emt 0:01:15]} 0-1

[Event "British Championship 2024"]
[Site "Hull"]
[Date "2024.07.31"]
[Round "4.31"]
[White "Sivanandan, Bodhana"]
[Black "Subramanian, Anusha"]
[Result "1-0"]
[Annotator "RC"]
[ECO "C47"]
[WhiteElo "2110"]
[BlackElo "2050"]
[PlyCount "71"]
[EventDate "2024.07.31"]
[EventCountry "GBR"]
[SourceTitle "playchess.com"]
[Source "ChessBase"]
[SourceQuality "1"]
[TimeControl "40/5400+30:1800+30"]

1. e4 {[%emt 0:00:24]} e5 {[%emt 0:00:05]} 2. Nf3 {[%emt 0:00:19]} Nc6 {[%emt 0:00:04]} 3. Nc3 {[%emt 0:00:21]} Nf6 {[%emt 0:00:04]} 4. d4 {[%emt 0:00:30]} exd4 {[%emt 0:00:04]} 5. Nxd4 {[%emt 0:00:27]} Bc5 {[%emt 0:00:06]} 6. Be3 {[%emt 0:00:43]} Bb4 {[%emt 1:33:07]} 7. Nxc6 {[%emt 0:00:46]} bxc6 {[%emt 0:00:00]} 8. Bd3 {[%emt 0:00:37]} O-O {[%emt 0:00:00]} 9. O-O {[%emt 0:00:35]} d5 {[%emt 0:00:00]} 10. exd5 {[%emt 0:00:42]} cxd5 {[%emt 0:00:00]} 11. h3 {[%emt 0:00:35]} c6 {[%emt 0:00:00]} 12. Bf4 {[%emt 0:02:48]} Bd6 {[%emt 0:00:00]} 13. Qf3 {[%emt 0:01:03]} Bb7 {[%emt 0:00:00]} 14. Ne2 {[%emt 0:06:37]} c5 {[%emt 0:00:00]} 15. c3 {[%emt 0:07:31]} Rb8 {[%emt 0:00:00]} 16. Bxd6 {[%emt 0:07:30]} Qxd6 {[%emt 0:00:00]} 17. Qg3 {[%emt 0:01:43]} Qb6 {[%emt 0:00:00]} 18. b3 {[%emt 0:03:07]} Rfe8 {[%emt 0:00:00]} 19. Nf4 {[%emt 0:02:07]} Rbd8 {[%emt 0:00:00]} 20. Rfe1 {[%emt 0:05:32]} a6 {[%emt 0:00:00]} 21. Rad1 {[%emt 0:04:18]} Qa5 {[%emt 0:00:00]} 22. Rxe8+ {[%emt 0:09:39]} Rxe8 {[%emt 0:00:00]} 23. Bb1 {[%emt 0:00:29]} d4 {[%emt 0:00:00]} 24. b4 {[%emt 0:08:17]} Qa4 {[%emt 0:00:00]} 25. Rc1 {[%emt 0:06:13]} Qa3 {[%emt 0:00:00]} 26. Rf1 {[%emt 0:03:54]} dxc3 {[%emt 0:00:00]} 27. bxc5 {[%emt 0:06:53]} Qxc5 {[%emt 0:00:00]} 28. Rc1 {[%emt 0:04:38]} Qb4 {[%emt 0:00:00]} 29. Nd3 {[%emt 0:03:05]} Qa5 {[%emt 0:00:00]} 30. Nf4 {[%emt 0:04:55]} Rc8 {[%emt 0:00:00]} 31. Ne2 {[%emt 0:01:13]} c2 {[%emt 0:04:32]} 32. Bxc2 {[%emt 0:02:21]} Qxa2 {[%emt 0:01:11]} 33. Bd3 {[%emt 0:02:32]} Rxc1+ {[%emt 0:01:50]} 34. Nxc1 {[%emt 0:00:14]} Qe6 {[%emt 0:00:22]} 35. Nb3 {[%emt 0:00:50]} Qd5 {[%emt 0:02:57]} 36. Qb8+ {[%emt 0:00:21]} 1-0